bitfinex/quotes_SOLUSD_20241118
["timestamp","ask_amount","ask_price","bid_price","bid_amount"]
[1731891914417,10.48000775,235.02,234.95,14.8967]
[1731891914801,48.255474,235.12,234.95,25.37670775]
[1731891915003,10.48000775,235.04,234.95,25.37670775]
[1731891915399,0.1,235.11,234.95,25.37670775]
[1731891915718,10.48000775,235.02,234.95,14.8967]
[1731891917597,10.48000775,235.0,234.95,10.6405]
[1731891917919,10.48000775,235.04,234.96,10.48000775]
[1731891918091,4.254,235.07,234.93,4.2565]
[1731891918092,10.48000775,235.07,234.98,10.48000775]
[1731891918520,10.48000775,235.07,235.0,10.48000775]
[1731891919918,10.48000775,235.07,235.0,25.37330775]
[1731891920224,10.48000775,235.11,235.02,10.48000775]
[1731891920551,10.48000775,235.11,235.04,10.48000775]
[1731891921312,7.11410163,235.24,235.08,10.48000775]
[1731891921631,10.48000775,235.18,235.1,10.48000775]
[1731891922312,10.48000775,235.2,235.13,14.8853]
[1731891922527,10.48000775,235.25,235.18,10.48000775]
[1731891922820,10.94684505,235.27,235.18,10.48000775]
[1731891923417,10.94684505,235.27,235.22,10.48000775]
[1731891923418,0.4668373,235.27,235.22,10.48000775]
[1731891924242,0.4668373,235.27,235.2,10.48000775]
[1731891924534,0.4668373,235.27,235.26,14.73060775]
[1731891925435,0.4668373,235.27,235.26,15.07526237]
[1731891925617,0.4668373,235.27,235.26,35.17526237]
[1731891925822,0.4668373,235.27,235.26,59.05214637]
[1731891927350,172.880007,235.56,235.34,0.09367462]
[1731891927640,172.9113,235.6,235.44,10.48000775]
[1731891927954,10.48000775,235.53,235.44,10.48000775]
[1731891928335,21.3209,235.62,235.34,0.25098]
[1731891928336,16.61399662,235.54,235.46,16.61399662]
[1731891928517,16.61399662,235.56,235.46,16.61399662]
[1731891929543,16.61399662,235.56,235.47,0.12549]
[1731891929711,16.61399662,235.56,235.48,16.61399662]
[1731891930841,16.61399662,235.56,235.49,4.37189]
[1731891931628,16.61399662,235.56,235.48,16.61399662]
[1731891932819,16.61399662,235.6,235.49,0.25098]
[1731891933020,162.4,235.72,235.49,20.44465462]
[1731891933225,11.0719373,235.74,235.49,44.22153862]
[1731891933226,16.61399662,235.66,235.49,44.22153862]
[1731891933444,16.61399662,235.68,235.54,0.25098]
[1731891933664,16.61399662,235.7,235.62,16.61399662]
[1731891934230,16.61399662,235.7,235.57,0.44465462]
[1731891934444,16.61399662,235.7,235.62,16.61399662]
[1731891934830,16.61399662,235.7,235.62,20.85799662]
[1731891936637,16.61399662,235.7,235.61,0.12549]
[1731891937024,16.61399662,235.7,235.62,16.61399662]
[1731891938645,16.61399662,235.7,235.62,20.85799662]
[1731891940034,16.61399662,235.7,235.62,16.61399662]
[1731891940236,16.61399662,235.64,235.57,4.2448]
[1731891941055,16.61399662,235.6,235.54,10.6137]
[1731891941949,16.61399662,235.6,235.54,14.8592]
[1731891942952,16.61399662,235.6,235.54,10.6137]
[1731891943252,16.61399662,235.58,235.54,10.6137]
[1731891943550,16.61399662,235.6,235.54,10.6137]
[1731891944832,16.61399662,235.6,235.52,20.85979662]
[1731891945238,16.61399662,235.58,235.52,14.8606]
[1731891946055,16.61399662,235.62,235.55,0.25098]
[1731891946255,16.61399662,235.64,235.56,16.61399662]
[1731891946428,16.61399662,235.64,235.56,20.85899662]
[1731891946769,16.61399662,235.69,235.61,0.12549]
[1731891947053,16.61399662,235.69,235.62,16.61399662]
[1731891948648,16.61399662,235.69,235.62,4.2441]
[1731891949352,20.85699662,235.69,235.6,16.61399662]
[1731891949528,16.61399662,235.65,235.59,0.25098]
[1731891950225,16.61399662,235.61,235.58,10.6121]
[1731891950662,16.61399662,235.65,235.58,14.8569]
[1731891950968,16.61399662,235.63,235.58,10.6121]
[1731891952367,16.61399662,235.61,235.54,16.61399662]
[1731891952663,16.61399662,235.63,235.55,0.25098]
[1731891952872,16.61399662,235.63,235.54,16.61399662]
[1731891953167,16.61399662,235.61,235.54,16.61399662]
[1731891953571,16.61399662,235.61,235.5,14.8619]
[1731891953572,16.61399662,235.59,235.52,16.61399662]
[1731891953756,16.61399662,235.59,235.5,27.22969662]
[1731891954668,16.61399662,235.57,235.5,27.22969662]
[1731891955051,16.61399662,235.57,235.51,0.12549]
[1731891955449,16.61399662,235.55,235.5,10.6157]
[1731891955764,16.61399662,235.55,235.5,14.8619]
[1731891956747,16.61399662,235.53,235.46,16.61399662]
[1731891957049,16.61399662,235.51,235.46,4.2468]
[1731891957250,16.61399662,235.51,235.45,14.8648]
[1731891957476,16.61399662,235.53,235.45,14.8648]
[1731891957859,16.61399662,235.53,235.46,16.61399662]
[1731891958577,16.61399662,235.58,235.49,16.61399662]
[1731891958777,16.61399662,235.62,235.54,0.12549]
[1731891958991,16.1607,235.69,235.57,16.61399662]
[1731891958992,16.61399662,235.66,235.57,16.61399662]
[1731891959159,16.61399662,235.66,235.58,0.12549]
[1731891960076,16.61399662,235.66,235.58,0.25098]
[1731891960780,16.61399662,235.66,235.59,4.2446]
[1731891961791,16.61399662,235.66,235.59,14.8562]
[1731891962165,16.61399662,235.68,235.6,0.12549]
[1731891962479,16.61399662,235.7,235.62,0.12549]
[1731891963155,16.6275373,235.74,235.61,16.61399662]
[1731891963156,17.08083392,235.74,235.66,0.25098]
[1731891963355,0.4668373,235.74,235.68,0.25098]
[1731891963572,0.4668373,235.74,235.7,0.12549]
[1731891964285,17.08083392,235.74,235.69,4.2428]
[1731891964483,16.61399662,235.72,235.68,10.6074]
[1731891965456,16.61399662,235.7,235.62,14.8541]
[1731891965672,16.61399662,235.67,235.62,14.8541]
[1731891967407,16.61399662,235.67,235.59,16.61399662]
[1731891967604,16.61399662,235.63,235.57,10.6124]
[1731891967909,16.61399662,235.65,235.57,10.6124]
[1731891968605,16.61399662,235.68,235.61,16.61399662]
[1731891968781,16.61399662,235.72,235.63,16.61399662]
[1731891969100,0.1,235.85,235.63,16.61399662]
[1731891969101,16.61399662,235.78,235.7,0.25098]
[1731891969484,15.1268,235.81,235.7,0.25098]
[1731891969485,16.61399662,235.76,235.7,0.12549]
[1731891969687,16.61399662,235.76,235.68,0.25098]
[1731891970699,17.08083392,235.74,235.69,14.8499]
[1731891971284,17.08083392,235.74,235.65,4.2434]
[1731891971285,16.61399662,235.72,235.65,4.2434]
[1731891971493,0.4668373,235.74,235.65,4.2434]
[1731891971494,16.61399662,235.7,235.65,4.2434]
[1731891971698,16.61399662,235.68,235.62,4.244]
[1731891972777,16.61399662,235.68,235.6,14.8556]
[1731891973000,16.61399662,235.68,235.61,0.12549]
[1731891973383,16.61399662,235.68,235.61,16.73948662]
[1731891974308,16.61399662,235.7,235.62,0.12549]
[1731891974512,0.4668373,235.74,235.67,16.61399662]
[1731891974801,0.4668373,235.74,235.69,14.8499]
[1731891975502,0.4668373,235.74,235.7,0.25098]
[1731891975692,0.4668373,235.74,235.71,16.61399662]
[1731891975881,0.4668373,235.74,235.72,0.25098]
[1731891977020,0.4668373,235.74,235.73,4.49308]
[1731891977178,0.4668373,235.74,235.73,65.07763524]
[1731891977387,0.4668373,235.74,235.73,64.97763524]
[1731891978106,0.4668373,235.74,235.73,65.07763524]
[1731891978301,0.4668373,235.74,235.73,64.97763524]
[1731891978499,0.4668373,235.74,235.73,71.22233524]
[1731891978810,0.5668373,235.98,235.83,16.61399662]
[1731891978811,16.61399662,235.9,235.83,16.61399662]
[1731891979010,16.61399662,235.92,235.85,16.61399662]
[1731891979799,16.61399662,235.94,235.86,14.8393]
[1731891980492,16.61399662,235.94,235.87,0.12549]
[1731891980932,16.61399662,235.94,235.87,20.97898662]
[1731891983031,16.61399662,235.96,235.89,16.61399662]
[1731891983441,0.4668373,235.98,235.94,0.12549]
[1731891984135,0.4668373,235.98,235.96,0.25098]
[1731891985275,0.4668373,235.98,235.96,4.48878]
[1731891986054,0.4668373,235.98,235.96,31.69777662]
[1731891986368,0.4668373,235.98,235.97,16.73948662]
[1731891986656,0.4668373,235.98,235.97,0.12549]
[1731891987160,0.4668373,235.98,235.97,16.73948662]
[1731891987465,0.4668373,235.98,235.97,16.95865124]
[1731891990854,0.4668373,235.98,235.97,0.12549]
[1731891992042,0.4668373,235.98,235.97,16.73948662]
[1731891992763,0.4668373,235.98,235.97,0.12549]
[1731891993767,0.4668373,235.98,235.96,31.44679662]
[1731891993768,0.4668373,235.98,235.96,14.8328]
[1731891994066,0.4668373,235.98,235.96,10.595]
[1731891994364,0.4668373,235.98,235.93,16.61399662]
[1731891994765,0.4668373,235.98,235.92,4.2387]
[1731891994952,17.08083392,235.98,235.92,4.2387]
[1731891995261,16.61399662,235.96,235.91,10.597]
[1731891995861,16.61399662,235.96,235.91,14.8359]
[1731891996433,17.08083392,235.98,235.91,14.8359]
[1731891996639,0.4668373,235.98,235.93,16.61399662]
[1731891997150,0.4668373,235.98,235.94,0.12549]
[1731891997357,0.4668373,235.98,235.92,0.25098]
[1731891997539,17.08083392,235.98,235.92,0.12549]
[1731891998362,17.08083392,235.98,235.93,4.2385]
[1731891998542,17.08083392,235.98,235.91,27.21099662]
[1731891998743,17.08083392,235.98,235.91,14.8358]
[1731892000762,16.61399662,235.96,235.91,10.597]
[1731892000962,4.7045373,235.98,235.87,16.61399662]
[1731892000963,16.61399662,235.94,235.87,4.2395]
[1731892001376,16.61399662,235.94,235.86,14.839]
[1731892001743,16.61399662,235.92,235.86,10.5992]
[1731892003471,16.61399662,235.88,235.81,31.45599662]
[1731892003670,16.61399662,235.86,235.79,4.241]
[1731892003894,16.61399662,235.86,235.78,20.85509662]
[1731892004172,16.61399662,235.86,235.78,31.45819662]
[1731892005074,16.61399662,235.84,235.78,10.6031]
[1731892005379,16.61399662,235.82,235.74,16.61399662]
[1731892005676,16.61399662,235.82,235.74,31.46069662]
[1731892005877,16.61399662,235.84,235.76,16.61399662]
[1731892006678,16.61399662,235.84,235.77,4.2414]
[1731892010267,10.35422161,235.87,235.79,10.35422161]
[1731892010619,10.35422161,235.91,235.84,0.12549]
[1731892010874,0.4668373,235.98,235.87,0.12549]
[1731892010875,10.35422161,235.93,235.87,0.12549]
[1731892011071,10.35422161,235.95,235.87,0.12549]
[1731892011969,10.35422161,235.95,235.87,4.36489]
[1731892012583,10.35422161,235.95,235.87,14.8384]
[1731892013075,10.35422161,235.97,235.88,10.35422161]
[1731892013279,0.4668373,235.98,235.9,10.35422161]
[1731892013605,10.35422161,235.97,235.88,10.35422161]
[1731892013785,4.7045373,235.98,235.87,25.19262161]
[1731892013786,10.35422161,235.95,235.87,25.19262161]
[1731892014392,16.55571353,235.95,235.87,14.8384]
[1731892014793,16.55571353,235.95,235.88,16.90036815]
[1731892014973,16.55571353,235.97,235.88,16.90036815]
[1731892016284,16.55571353,235.97,235.89,14.8373]
[1731892017105,0.4668373,235.98,235.9,40.67725215]
[1731892017284,0.4668373,235.98,235.92,16.55571353]
[1731892017606,0.4668373,235.98,235.93,0.12549]
[1731892018394,0.4668373,235.98,235.94,14.8342]
[1731892021175,0.4668373,235.98,235.95,0.34465462]
[1731892021482,0.4668373,235.98,235.95,0.25098]
[1731892022398,0.4668373,235.98,235.94,14.8342]
[1731892023490,0.4668373,235.98,235.95,0.25098]
[1731892023818,0.4668373,235.98,235.94,14.8342]
[1731892024886,16.55571353,235.97,235.94,10.5959]
[1731892025389,0.4668373,235.98,235.84,44.03201353]
[1731892025390,16.55571353,235.95,235.84,44.03201353]
[1731892025715,16.55571353,235.91,235.86,4.2397]
[1731892027187,16.55571353,235.92,235.86,4.2397]
[1731892028201,0.4668373,235.98,235.85,10.5999]
[1731892028202,16.55571353,235.9,235.85,10.5999]
[1731892030915,16.55571353,235.86,235.81,4.2405]
[1731892031412,16.55571353,235.86,235.81,14.8422]
[1731892032219,16.55571353,235.82,235.76,10.6037]
[1731892032417,16.55571353,235.78,235.71,10.606]
[1731892032723,16.55571353,235.74,235.71,10.606]
[1731892034016,4.2412,235.79,235.66,16.55571353]
[1731892034017,16.55571353,235.72,235.66,17.24830193]
[1731892034200,4.2418,235.75,235.63,4.2438]
[1731892034394,10.369895,235.71,235.64,10.369895]
[1731892035103,16.0579,235.83,235.7,10.369895]
[1731892035304,10.369895,235.78,235.71,10.369895]
[1731892035514,10.369895,235.78,235.7,0.12549]
[1731892035998,10.369895,235.78,235.71,4.2425]
[1731892036323,16.58258718,235.76,235.71,4.2425]
[1731892036518,16.58258718,235.74,235.69,14.8496]
[1731892036901,16.58258718,235.72,235.69,10.6068]
[1731892037226,16.58258718,235.8,235.62,10.61]
[1731892037227,16.58258718,235.7,235.62,10.61]
[1731892037435,16.58258718,235.68,235.62,10.61]
[1731892037634,0.09367462,235.78,235.62,27.19258718]
[1731892037635,16.58258718,235.7,235.62,27.19258718]
[1731892037929,16.58258718,235.7,235.62,31.43658718]
[1731892038304,0.09367462,235.78,235.62,14.854]
[1731892038305,16.58258718,235.68,235.62,14.854]
[1731892038909,16.58258718,235.68,235.59,0.73522838]
[1731892038910,16.58258718,235.66,235.59,0.73522838]
[1731892039116,16.58258718,235.61,235.56,10.6125]
[1731892039409,16.58258718,235.63,235.56,10.6125]
[1731892040015,16.58258718,235.63,235.56,14.8577]
[1731892040213,16.58258718,235.63,235.56,31.44028718]
[1731892041121,16.58258718,235.63,235.57,0.12549]
[1731892041433,16.58258718,235.69,235.6,16.58258718]
[1731892041814,16.58258718,235.69,235.62,16.58258718]
[1731892042008,16.58258718,235.69,235.63,4.36939]
[1731892042408,16.58258718,235.71,235.64,0.12549]
[1731892042621,16.58258718,235.71,235.63,14.97919]
[1731892042930,16.58258718,235.66,235.6,0.12549]
[1731892043137,16.58258718,235.64,235.6,0.12549]
[1731892043430,16.58258718,235.64,235.58,10.6121]
[1731892043642,16.58258718,235.64,235.58,14.8569]
[1731892044135,16.58258718,235.66,235.58,31.43948718]
[1731892044318,16.58258718,235.68,235.6,16.58258718]
[1731892045126,4.2421,235.73,235.63,0.12549]
[1731892045127,16.58258718,235.7,235.63,0.12549]
[1731892045738,16.58258718,235.64,235.59,0.25098]
[1731892046421,16.58258718,235.64,235.59,4.2445]
[1731892046612,16.58258718,235.66,235.6,0.12549]
[1731892046935,16.58258718,235.68,235.63,0.12549]
[1731892047616,16.58258718,235.68,235.6,16.70807718]
[1731892047823,16.58258718,235.66,235.59,14.8561]
[1731892048030,16.58258718,235.64,235.59,14.8561]
[1731892048412,16.58258718,235.62,235.55,4.2452]
[1731892048911,16.58258718,235.56,235.48,27.19908718]
[1731892049106,16.58258718,235.56,235.48,10.6165]
[1731892049310,16.58258718,235.56,235.48,16.58258718]
[1731892049530,16.58258718,235.63,235.53,16.58258718]
[1731892049944,16.58258718,235.65,235.57,16.58258718]
[1731892050819,16.58258718,235.65,235.57,20.82738718]
[1731892053437,16.58258718,235.65,235.56,0.25098]
[1731892053859,16.58258718,235.67,235.6,0.12549]
[1731892054037,16.58258718,235.69,235.61,16.58258718]
[1731892054230,16.58258718,235.69,235.62,0.12549]
[1731892054432,16.58258718,235.71,235.63,16.58258718]
[1731892055691,16.58258718,235.71,235.64,4.2437]
[1731892056946,16.58258718,235.73,235.65,16.70807718]
[1731892057141,16.58258718,235.75,235.66,0.12549]
[1731892057946,0.09367462,235.79,235.67,16.58258718]
[1731892058236,16.58258718,235.75,235.68,4.243]
[1731892058441,16.58258718,235.73,235.68,4.243]
[1731892058841,4.2415,235.77,235.68,14.8506]
[1731892059153,16.58258718,235.79,235.71,16.58258718]
[1731892059356,16.58258718,235.75,235.69,0.25098]
[1731892059562,16.58258718,235.75,235.68,14.8506]
[1731892059750,16.58258718,235.73,235.68,14.8506]
[1731892060065,14.8398,235.85,235.69,16.83356718]
[1731892060066,16.58258718,235.77,235.69,16.83356718]
[1731892060270,16.58258718,235.77,235.7,14.8493]
[1731892061333,16.58258718,235.81,235.73,16.58258718]
[1731892061739,4.2406,235.82,235.72,0.12549]
[1731892062264,4.33357462,235.85,235.73,4.2421]
[1731892062468,16.58258718,235.79,235.73,4.2421]
[1731892062768,16.58258718,235.79,235.73,14.8474]
[1731892062943,16.58258718,235.77,235.69,16.70807718]
[1731892063142,16.58258718,235.75,235.69,4.49368]
[1731892063468,4.3399,235.85,235.73,16.58258718]
[1731892063469,16.58258718,235.81,235.73,16.58258718]
[1731892063641,16.58258718,235.81,235.74,0.25098]
[1731892064261,10.35917925,235.82,235.75,14.8461]
[1731892065350,15.094,235.93,235.81,0.25098]
[1731892065673,10.35917925,235.92,235.85,10.35917925]
[1731892066460,16.55950083,235.92,235.86,0.25098]
[1731892067054,16.55950083,235.94,235.87,16.55950083]
[1731892067263,0.4668373,235.98,235.88,0.25098]
[1731892067570,16.55950083,235.96,235.9,0.12549]
[1731892069461,0.4668373,235.98,235.94,0.25098]
[1731892069665,0.4668373,235.98,235.93,16.55950083]
[1731892069869,17.02633813,235.98,235.92,0.12549]
[1731892070947,16.55950083,235.96,235.92,0.12549]
[1731892071257,16.55950083,235.96,235.92,4.36409]
[1731892072746,17.02633813,235.98,235.92,4.36409]
[1731892073269,0.4668373,235.98,235.92,14.96089]
[1731892074658,16.55950083,235.97,235.92,10.5968]
[1731892075062,16.55950083,235.95,235.92,10.5968]
[1731892077474,16.55950083,235.97,235.92,10.5968]
[1731892077973,16.55950083,235.97,235.92,14.8355]
[1731892079377,16.55950083,235.97,235.92,10.5968]
[1731892082251,0.4668373,235.98,235.89,0.12549]
[1731892082252,16.55950083,235.95,235.89,0.12549]
[1731892082455,16.55950083,235.93,235.89,4.36459]
[1731892082662,16.55950083,235.96,235.89,14.96269]
[1731892083071,16.55950083,235.97,235.9,16.68499083]
[1731892083252,0.4668373,235.98,235.91,0.12549]
[1731892083875,16.55950083,235.97,235.92,14.8355]
[1731892084380,0.4668373,235.98,235.92,31.39500083]
[1731892087860,0.4668373,235.98,235.92,14.8355]
[1731892088164,0.4668373,235.98,235.94,16.55950083]
[1731892088362,0.4668373,235.98,235.93,10.34349059]
[1731892088562,0.4668373,235.98,235.94,10.34349059]
[1731892088764,0.4668373,235.98,235.95,10.34349059]
[1731892088956,0.4668373,235.98,235.96,0.12549]
[1731892089358,0.4668373,235.98,235.97,10.46898059]
[1731892089866,20.0,235.97,235.84,15.9647]
[1731892090072,10.34349059,235.93,235.85,10.34349059]
[1731892090887,10.34349059,235.93,235.86,10.5994]
[1731892091566,10.34349059,235.91,235.86,10.5994]
[1731892098076,10.34349059,235.87,235.78,14.58459059]
[1731892098263,10.34349059,235.85,235.76,10.34349059]
[1731892098588,10.34349059,235.79,235.74,4.2418]
[1731892098795,10.34349059,235.79,235.71,20.94949059]
[1731892099087,10.34349059,235.77,235.71,10.606]
[1731892100582,20.0,235.72,235.62,10.34349059]
[1731892100788,10.34349059,235.66,235.61,10.6106]
[1731892100982,10.34349059,235.68,235.59,10.34349059]
[1731892101272,10.34349059,235.68,235.61,10.34349059]
[1731892101471,20.0,235.74,235.61,10.34349059]
[1731892101681,10.34349059,235.7,235.61,10.34349059]
[1731892101976,10.34349059,235.7,235.62,4.2441]
[1731892102272,10.34349059,235.7,235.61,10.34349059]
[1731892102472,10.34349059,235.68,235.61,10.34349059]
[1731892102683,10.34349059,235.68,235.59,10.34349059]
[1731892102980,10.34349059,235.72,235.65,10.34349059]
[1731892103188,30.34349059,235.74,235.65,10.34349059]
[1731892103392,15.268,235.77,235.69,10.34349059]
[1731892103694,10.34349059,235.78,235.69,10.34349059]
[1731892103892,10.34349059,235.78,235.7,4.2426]
[1731892104092,10.34349059,235.78,235.7,14.58609059]
[1731892104293,21.5035,235.82,235.73,0.12549]
[1731892104294,10.34349059,235.8,235.73,0.12549]
[1731892104594,25.61149059,235.82,235.74,10.34349059]
[1731892104968,10.34349059,235.79,235.72,10.34349059]
[1731892105168,10.34349059,235.79,235.71,0.12549]
[1731892105578,10.34349059,235.79,235.72,10.34349059]
[1731892106489,10.34349059,235.83,235.76,10.34349059]
[1731892107097,10.34349059,235.83,235.74,10.46898059]
[1731892107671,10.34349059,235.81,235.74,0.12549]
[1731892108584,10.34349059,235.83,235.75,25.18959059]
[1731892108888,10.34349059,235.89,235.81,10.34349059]
[1731892109092,4.2388,235.92,235.83,10.34349059]
[1731892109093,10.34349059,235.91,235.83,10.34349059]
[1731892109673,10.34349059,235.91,235.84,0.12549]
[1731892110073,10.34349059,235.93,235.85,10.34349059]
[1731892110277,10.34349059,235.93,235.84,0.12549]
[1731892110278,10.34349059,235.95,235.87,10.34349059]
[1731892110897,10.34349059,235.95,235.88,4.2394]
[1731892111195,10.81032789,235.98,235.91,10.34349059]
[1731892111409,0.4668373,235.98,235.93,10.34349059]
[1731892112282,0.4668373,235.98,235.94,16.54803321]
[1731892112914,0.4668373,235.98,235.94,20.78623321]
[1731892113203,0.4668373,235.98,235.94,4.2382]
[1731892114295,0.4668373,235.98,235.92,0.25098]
[1731892114481,0.4668373,235.98,235.92,15.08648]
[1731892117597,0.4668373,235.98,235.92,14.8355]
[1731892118902,17.01487051,235.98,235.92,14.8355]
[1731892119093,17.01487051,235.98,235.86,10.5991]
[1731892119094,16.54803321,235.94,235.86,10.5991]
[1731892119296,16.54803321,235.94,235.87,4.2395]
[1731892119682,17.01487051,235.98,235.89,16.54803321]
[1731892119893,16.54803321,235.94,235.87,31.38653321]
[1731892120699,16.54803321,235.94,235.87,14.8385]
[1731892121090,16.54803321,235.92,235.83,16.54803321]
[1731892121408,16.54803321,235.92,235.86,16.54803321]
[1731892121594,16.54803321,235.94,235.86,16.54803321]
[1731892122300,16.54803321,235.92,235.84,16.54803321]
[1731892122716,16.54803321,235.9,235.83,14.841]
[1731892122887,16.54803321,235.9,235.83,10.6008]
[1731892123089,16.54803321,235.88,235.83,10.6008]
[1731892123597,16.54803321,235.88,235.81,4.2406]
[1731892123784,16.54803321,235.85,235.78,14.844]
[1731892124108,16.54803321,235.87,235.79,16.54803321]
[1731892124677,16.54803321,235.85,235.78,10.6029]
[1731892125311,4.2389,235.91,235.79,16.54803321]
[1731892125482,16.54803321,235.87,235.79,16.54803321]
[1731892126132,16.54803321,235.87,235.8,4.2408]
[1731892127010,16.54803321,235.85,235.8,4.2408]
[1731892127515,16.54803321,235.85,235.78,14.8441]
[1731892127892,16.54803321,235.87,235.79,16.54803321]
[1731892128597,16.54803321,235.87,235.8,4.2408]
[1731892130024,16.54803321,235.9,235.82,16.54803321]
[1731892130518,16.54803321,235.86,235.8,14.843]
[1731892134106,20.78753321,235.88,235.8,27.15023321]
[1731892134303,20.0,235.87,235.8,20.95707349]
[1731892134509,14.59437349,235.88,235.8,20.95707349]
[1731892135199,20.0,235.87,235.8,25.19787349]
[1731892138521,24.2397,235.87,235.8,25.19787349]
[1731892140317,20.0,235.87,235.82,10.35487349]
[1731892140623,24.2394,235.89,235.82,10.35487349]
[1731892141538,10.35487349,235.95,235.88,10.35487349]
[1731892141701,14.59267349,235.97,235.88,10.35487349]
[1731892142827,20.0,235.96,235.88,10.35487349]
[1731892143320,20.0,235.96,235.89,4.2392]
[1731892143527,0.4668373,235.98,235.9,10.35487349]
[1731892144605,0.4668373,235.98,235.92,10.35487349]
[1731892144813,0.4668373,235.98,235.93,0.12549]
[1731892145114,0.4668373,235.98,235.95,4.2381]
[1731892147237,0.4668373,235.98,235.93,10.596]
[1731892149237,10.82171079,235.98,235.91,4.2389]
[1731892150410,10.82171079,235.98,235.89,14.8373]
[1731892150809,0.4668373,235.98,235.94,0.12549]
[1731892151119,0.4668373,235.98,235.91,10.35487349]
[1731892151310,0.4668373,235.98,235.9,0.25098]
[1731892152213,0.4668373,235.98,235.91,25.19097349]
[1731892152410,0.4668373,235.98,235.95,10.35487349]
[1731892153145,0.4668373,235.98,235.97,10.35487349]
[1731892153332,0.4668373,235.98,235.97,10.48036349]
[1731892154312,0.4668373,235.98,235.97,14.71816349]
[1731892155016,0.4668373,235.98,235.96,16.6605]
[1731892155326,0.4668373,235.98,235.96,20.8985]
[1731892155503,0.4668373,235.98,235.96,14.8329]
[1731892158210,0.09367462,235.95,235.8,26.27630328]
[1731892158425,10.35487349,235.92,235.78,4.2412]
[1731892158629,10.35487349,235.92,235.83,10.35487349]
[1731892160110,10.35487349,235.92,235.84,4.2401]
[1731892160724,10.35487349,235.92,235.85,0.25098]
[1731892161728,10.35487349,235.92,235.85,0.12549]
[1731892162732,4.2387,235.93,235.85,10.48036349]
[1731892162733,10.35487349,235.93,235.85,10.48036349]
[1731892163242,10.35487349,235.93,235.85,14.72026349]
[1731892163717,10.35487349,235.94,235.85,14.72026349]
[1731892164342,14.59327349,235.94,235.85,14.72026349]
[1731892169022,14.59327349,235.94,235.84,10.6004]
[1731892169023,10.35487349,235.92,235.84,10.6004]
[1731892169220,10.35487349,235.9,235.84,10.6004]
[1731892170423,10.35487349,235.92,235.84,14.8405]
[1731892170634,14.59327349,235.94,235.85,10.48036349]
[1731892171533,14.59327349,235.94,235.86,14.8393]
[1731892171732,14.59327349,235.94,235.87,10.35487349]
[1731892171928,10.35487349,235.94,235.87,10.35487349]
[1731892172129,20.0,235.96,235.89,10.35487349]
[1731892172445,20.0,235.97,235.91,10.35487349]
[1731892172927,0.4668373,235.98,235.91,10.35487349]
[1731892173323,0.4668373,235.98,235.93,10.35487349]
[1731892173865,0.4668373,235.98,235.93,14.59327349]
[1731892174152,0.4668373,235.98,235.93,4.2384]
[1731892174351,0.4668373,235.98,235.93,14.59327349]
[1731892175252,0.4668373,235.98,235.93,25.18957349]
[1731892177224,0.4668373,235.98,235.94,10.34341298]
[1731892178450,0.4668373,235.98,235.93,4.2383]
[1731892179641,0.4668373,235.98,235.94,0.12549]
[1731892180631,0.4668373,235.98,235.97,10.59439298]
[1731892180832,0.4668373,235.98,235.93,14.58171298]
[1731892183928,0.4668373,235.98,235.93,25.17801298]
[1731892185148,0.4668373,235.98,235.96,0.12549]
[1731892185434,0.4668373,235.98,235.95,10.34341298]
[1731892185954,0.4668373,235.98,235.96,4.238]
[1731892189144,0.4668373,235.98,235.95,10.34341298]
[1731892189339,0.4668373,235.98,235.95,14.58151298]
[1731892191253,0.4668373,235.98,235.96,0.12549]
[1731892192242,0.4668373,235.98,235.96,6.74427074]
[1731892192440,0.4668373,235.98,235.97,4.2378]
[1731892193439,0.4668373,235.98,235.95,10.5954]
[1731892194560,0.4668373,235.98,235.86,21.199]
[1731892194561,0.4668373,235.98,235.86,36.0383]
[1731892194750,4.7045373,235.98,235.9,0.12549]
[1731892195957,4.7045373,235.98,235.9,4.36439]
[1731892198059,0.4668373,235.98,235.91,6.61878074]
[1731892198285,0.4668373,235.98,235.93,6.61878074]
[1731892200771,0.4668373,235.98,235.91,10.85758074]
[1731892200772,4.7044373,235.98,235.91,10.85758074]
[1731892201851,24.7044373,235.98,235.85,26.4372]
[1731892202071,24.7044373,235.98,235.89,6.61878074]
[1731892202260,24.7044373,235.98,235.91,6.61878074]
[1731892202661,24.7044373,235.98,235.86,15.09008]
[1731892202855,24.7044373,235.98,235.89,6.61878074]
[1731892203267,24.7044373,235.98,235.9,4.239]
[1731892204672,24.7044373,235.98,235.87,14.8386]
[1731892204873,24.7044373,235.98,235.89,6.61878074]
[1731892205179,24.7044373,235.98,235.87,14.8386]
[1731892205346,24.7044373,235.98,235.87,10.599]